[Event "HUN-chT Youth 2019"]
[Site "Budapest"]
[Date "2019.10.29"]
[Round "7.24"]
[White "Szamko, Hanna"]
[Black "Varga, Mira Adel"]
[Result "1/2-1/2"]
[ECO "C50"]
[WhiteElo "1402"]
[BlackElo "1282"]
[Annotator "NA"]
[PlyCount "111"]
[EventDate "2019.10.26"]
[EventType "team-tourn"]
[EventCountry "HUN"]
[SourceTitle "playchess.com"]
[Source "ChessBase"]
[SourceQuality "1"]
[TimeControl "5400+30"]

1. e4 {[%emt 0:00:00]} e5 {[%emt 0:00:00]} 2. Nf3 {[%emt 0:00:00]} Nc6 {[%emt 0:00:00]} 3. Bc4 {[%emt 0:00:12]} Bc5 {[%emt 0:00:02]} 4. d3 {[%emt 0:00:55]} h6 {[%emt 0:00:57]} 5. O-O {[%emt 0:02:12]} Nf6 {[%emt 0:00:26]} 6. h3 {[%emt 0:01:10]} O-O {[%emt 0:00:30]} 7. c3 {[%emt 0:04:29]} d6 {[%emt 0:01:33]} 8. a4 {[%emt 0:00:45]} a5 {[%emt 0:01:20]} 9. Be3 {[%emt 0:02:57]} Ba7 {[%emt 0:02:27]} 10. Bb3 {[%emt 0:04:02]} Nh5 {[%emt 0:03:47]} 11. Bc2 {[%emt 0:03:17]} Qf6 {[%emt 0:00:41]} 12. Na3 {[%emt 0:06:54]} Ne7 {[%emt 0:05:04]} 13. Kh2 {[%emt 0:20:18]} Ng6 {[%emt 0:01:13]} 14. Ng1 {[%emt 0:01:52]} Nhf4 {[%emt 0:01:50]} 15. g3 {[%emt 0:04:23]} Ne6 {[%emt 0:03:37]} 16. Qf3 {[%emt 0:03:01]} Qxf3 {[%emt 0:01:44]} 17. Nxf3 {[%emt 0:00:15]} f5 {[%emt 0:00:59]} 18. exf5 {[%emt 0:07:18]} Rxf5 {[%emt 0:00:10]} 19. Nd2 {[%emt 0:02:37]} d5 {[%emt 0:02:14]} 20. d4 {[%emt 0:01:05]} e4 {[%emt 0:00:08]} 21. f3 {[%emt 0:00:31]} c5 {[%emt 0:04:20]} 22. dxc5 {[%emt 0:01:23]} Bxc5 {[%emt 0:01:04]} 23. Bxc5 {[%emt 0:00:10]} Nxc5 {[%emt 0:00:14]} 24. fxe4 {[%emt 0:00:06]} dxe4 {[%emt 0:01:42]} 25. Nxe4 {[%emt 0:00:22]} Ne7 {[%emt 0:08:17]} 26. Rxf5 {[%emt 0:00:15]} Bxf5 {[%emt 0:00:04]} 27. Nxc5 {[%emt 0:00:08]} b6 {[%emt 0:02:02]} 28. Bxf5 {[%emt 0:01:09]} Nxf5 {[%emt 0:00:52]} 29. Nb3 {[%emt 0:00:25]} Re8 {[%emt 0:00:22]} 30. Nc4 {[%emt 0:06:38]} Re2+ {[%emt 0:00:44]} 31. Kg1 {[%emt 0:00:27]} Nxg3 {[%emt 0:00:23]} 32. Nd4 {[%emt 0:00:26]} Re7 {[%emt 0:02:45]} 33. Nxb6 {[%emt 0:01:20]} Rb7 {[%emt 0:00:49]} 34. Nc4 {[%emt 0:00:11]} Ra7 {[%emt 0:01:47]} 35. Nc6 {[%emt 0:00:09]} Ra6 {[%emt 0:01:21]} 36. N4xa5 {[%emt 0:00:32]} Ne2+ {[%emt 0:00:40]} 37. Kf2 {[%emt 0:00:35]} Nf4 {[%emt 0:00:24]} 38. b4 {[%emt 0:00:11]} Nxh3+ {[%emt 0:00:43]} 39. Kg3 {[%emt 0:00:42]} Ng5 {[%emt 0:00:15]} 40. b5 {[%emt 0:00:36]} Rb6 {[%emt 0:00:59]} 41. Kf4 {[%emt 0:01:32]} Kf7 {[%emt 0:01:02]} 42. Ke5 {[%emt 0:00:15]} Ke8 {[%emt 0:01:14]} 43. Kd6 {[%emt 0:00:29]} Ne4+ {[%emt 0:03:26]} 44. Kc7 {[%emt 0:00:30]} Rxb5 {[%emt 0:01:10]} 45. axb5 {[%emt 0:00:34]} Nxc3 {[%emt 0:00:16]} 46. Re1+ {[%emt 0:00:14]} Kf7 {[%emt 0:00:17]} 47. Re5 {[%emt 0:00:17]} Nxb5+ {[%emt 0:01:12]} 48. Rxb5 {[%emt 0:00:10]} g5 {[%emt 0:00:09]} 49. Nd4 {[%emt 0:00:40]} Kg6 {[%emt 0:00:16]} 50. Rb6+ {[%emt 0:01:00]} Kh5 {[%emt 0:00:15]} 51. Nf5 {[%emt 0:00:28]} Kg4 {[%emt 0:00:15]} 52. Nxh6+ {[%emt 0:00:00]} Kf4 {[%emt 0:00:11]} 53. Kd6 {[%emt 0:00:00]} Kg3 {[%emt 0:00:19]} 54. Ke5 {[%emt 0:00:30]} g4 {[%emt 0:00:40]} 55. Nxg4 {[%emt 0:00:24]} Kxg4 {[%emt 0:00:19]} 56. Rf6 {[%emt 0:00:20]} 1/2-1/2

[Event "HUN-chT Youth 2019"]
[Site "Budapest"]
[Date "2019.10.29"]
[Round "7.25"]
[White "Kokeny, Norbert Adrian"]
[Black "Kaloczi, Kristof"]
[Result "1-0"]
[ECO "A06"]
[WhiteElo "2292"]
[BlackElo "2099"]
[Annotator "ChessBase"]
[PlyCount "139"]
[EventDate "2019.10.26"]
[EventType "team-tourn"]
[EventCountry "HUN"]
[SourceTitle "playchess.com"]
[Source "ChessBase"]
[SourceQuality "1"]
[TimeControl "5400+30"]

1. Nf3 {[%emt 0:00:00]} d5 {[%emt 0:00:00]} 2. g3 {[%emt 0:00:00]} Nf6 {[%emt 0:00:00]} 3. Bg2 {[%emt 0:00:00]} c6 {[%emt 0:00:04]} 4. O-O {[%emt 0:00:12]} Bf5 {[%emt 0:00:40]} 5. b3 {[%emt 0:00:37]} e6 {[%emt 0:00:39]} 6. Bb2 {[%emt 0:00:06]} h6 {[%emt 0:01:03]} 7. d3 {[%emt 0:02:14]} Be7 {[%emt 0:00:17]} 8. Nbd2 {[%emt 0:00:52]} O-O {[%emt 0:00:20]} 9. Re1 {[%emt 0:00:10]} a5 {[%emt 0:05:47]} 10. e4 {[%emt 0:03:51]} Bh7 {[%emt 0:00:11]} 11. e5 {[%emt 0:01:30]} Nfd7 {[%emt 0:02:33]} 12. h4 {[%emt 0:00:21]} a4 {[%emt 0:02:22]} 13. Nf1 {[%emt 0:01:15]} Re8 {[%emt 0:06:50]} 14. N1h2 {[%emt 0:01:31]} f5 {[%emt 0:07:25]} 15. exf6 {[%emt 0:00:19]} Bxf6 {[%emt 0:00:15]} 16. Bxf6 {[%emt 0:02:02]} Qxf6 {[%emt 0:05:50]} 17. d4 {[%emt 0:07:33]} axb3 {[%emt 0:08:34]} 18. cxb3 {[%emt 0:00:28]} c5 {[%emt 0:02:33]} 19. Ng4 {[%emt 0:01:45]} Qf8 {[%emt 0:07:42]} 20. dxc5 {[%emt 0:05:50]} Nc6 {[%emt 0:03:42]} 21. Nfe5 {[%emt 0:04:05]} Ncxe5 {[%emt 0:12:05]} 22. Nxe5 {[%emt 0:00:12]} Nxc5 {[%emt 0:00:11]} 23. Qd4 {[%emt 0:03:41]} Ne4 {[%emt 0:05:44]} 24. Bxe4 {[%emt 0:01:28]} dxe4 {[%emt 0:00:22]} 25. Qe3 {[%emt 0:08:00]} Red8 {[%emt 0:05:05]} 26. Qe2 {[%emt 0:10:41]} Rd5 {[%emt 0:04:11]} 27. Nc4 {[%emt 0:00:33]} Rad8 {[%emt 0:00:24]} 28. Rad1 {[%emt 0:00:45]} b5 {[%emt 0:02:43]} 29. Ne3 {[%emt 0:00:20]} Rd3 {[%emt 0:00:18]} 30. Nf1 {[%emt 0:06:16]} Qd6 {[%emt 0:03:01]} 31. Rc1 {[%emt 0:00:54]} b4 {[%emt 0:02:10]} 32. Rc4 {[%emt 0:00:44]} Ra8 {[%emt 0:01:52]} 33. Rec1 {[%emt 0:00:16]} Rd8 {[%emt 0:01:52]} 34. Qe1 {[%emt 0:02:09]} Rd1 {[%emt 0:05:56]} 35. Qxd1 {[%emt 0:00:51]} Qxd1 {[%emt 0:00:03]} 36. Rxd1 {[%emt 0:00:06]} Rxd1 {[%emt 0:00:04]} 37. Rxb4 {[%emt 0:00:13]} e3 {[%emt 0:00:12]} 38. fxe3 {[%emt 0:00:06]} Bd3 {[%emt 0:00:04]} 39. Rf4 {[%emt 0:00:04]} Ra1 {[%emt 0:00:07]} 40. Rf2 {[%emt 0:02:20]} Bxf1 {[%emt 0:00:06]} 41. Rxf1 {[%emt 0:00:03]} Rxa2 {[%emt 0:00:07]} 42. Rf4 {[%emt 0:02:28]} Rb2 {[%emt 0:01:13]} 43. b4 {[%emt 0:00:16]} e5 {[%emt 0:00:06]} 44. Re4 {[%emt 0:00:12]} Kf7 {[%emt 0:00:06]} 45. Rxe5 {[%emt 0:00:07]} Rxb4 {[%emt 0:00:15]} 46. Kf2 {[%emt 0:00:04]} Kf6 {[%emt 0:00:19]} 47. Ra5 {[%emt 0:00:10]} Rb6 {[%emt 0:02:17]} 48. Kf3 {[%emt 0:00:12]} Rc6 {[%emt 0:00:43]} 49. Kf4 {[%emt 0:00:42]} Rb6 {[%emt 0:02:06]} 50. e4 {[%emt 0:00:17]} g6 {[%emt 0:01:31]} 51. g4 {[%emt 0:01:16]} Rc6 {[%emt 0:00:50]} 52. Rd5 {[%emt 0:00:47]} Ra6 {[%emt 0:00:50]} 53. Rb5 {[%emt 0:03:15]} Rc6 {[%emt 0:00:06]} 54. g5+ {[%emt 0:02:41]} hxg5+ {[%emt 0:00:07]} 55. hxg5+ {[%emt 0:00:03]} Ke6 {[%emt 0:00:21]} 56. Rb7 {[%emt 0:00:04]} Rc1 {[%emt 0:01:03]} 57. Rb6+ {[%emt 0:00:15]} Kf7 {[%emt 0:00:13]} 58. Rd6 {[%emt 0:00:50]} Rf1+ {[%emt 0:00:19]} 59. Ke5 {[%emt 0:00:06]} Rg1 {[%emt 0:01:12]} 60. Rd7+ {[%emt 0:00:47]} Ke8 {[%emt 0:00:15]} 61. Rg7 {[%emt 0:00:19]} Rxg5+ {[%emt 0:00:21]} 62. Kf6 {[%emt 0:00:37]} Ra5 {[%emt 0:00:21]} 63. e5 {[%emt 0:00:14]} Kf8 {[%emt 0:01:52]} 64. Rb7 {[%emt 0:00:56]} Ra8 {[%emt 0:00:34]} 65. e6 {[%emt 0:00:45]} g5 {[%emt 0:00:45]} 66. Rf7+ {[%emt 0:00:16]} Kg8 {[%emt 0:00:22]} 67. Rg7+ {[%emt 0:00:17]} Kh8 {[%emt 0:00:17]} 68. e7 {[%emt 0:00:45]} Ra6+ {[%emt 0:00:49]} 69. Kf7 {[%emt 0:00:17]} Ra7 {[%emt 0:00:18]} 70. Rxg5 {[%emt 0:00:12]} 1-0

[Event "HUN-chT Youth 2019"]
[Site "Budapest"]
[Date "2019.10.29"]
[Round "7.26"]
[White "Czumbel, Peter"]
[Black "Baski, Barnabas"]
[Result "0-1"]
[ECO "A05"]
[WhiteElo "2021"]
[BlackElo "2037"]
[Annotator "NA"]
[PlyCount "68"]
[EventDate "2019.10.26"]
[EventType "team-tourn"]
[EventCountry "HUN"]
[SourceTitle "playchess.com"]
[Source "ChessBase"]
[SourceQuality "1"]
[TimeControl "5400+30"]

1. Nf3 {[%emt 0:00:30]} Nf6 {[%emt 0:00:00]} 2. g3 {[%emt 0:00:04]} b6 {[%emt 0:00:00]} 3. Bg2 {[%emt 0:00:05]} Bb7 {[%emt 0:00:00]} 4. O-O {[%emt 0:00:05]} e6 {[%emt 0:00:10]} 5. d3 {[%emt 0:00:10]} d5 {[%emt 0:00:34]} 6. Nbd2 {[%emt 0:00:07]} Be7 {[%emt 0:00:49]} 7. Qe1 {[%emt 0:03:41] A05: Réti Opening: 1 Nf3 Nf6} (7. e4 c5 8. Re1 Nc6 9. Qe2 Qc7 10. Nf1 d4 11. e5 Nd7 12. Bf4 h6 13. h4 O-O-O 14. N1d2 Nb4 15. Nc4 Nd5 16. Bd2 Nb8 17. a4 Ba6 {1-0 (60) Naroditsky,D (2616)-Nakamura,H (2749) chess.com INT 2019}) 7... c5 {[%emt 0:00:47]} 8. e4 {[%emt 0:00:33]} Nc6 {[%emt 0:00:57]} 9. e5 {[%emt 0:09:25]} Nd7 {[%emt 0:01:05]} 10. Qe2 {[%emt 0:00:22]} Qc7 {[%emt 0:01:24]} 11. Re1 {[%emt 0:00:15]} O-O-O $146 {[%emt 0:01:23]} ({Predecessor:} 11... g5 12. h3 O-O-O 13. Nf1 Rdg8 14. c4 d4 {1-0 (63) Rapoport,V (2303)-Glauder,J (2018) Germany 2010}) 12. Nf1 {[%emt 0:05:29]} h6 {[%emt 0:01:38]} 13. h4 {[%emt 0:00:26]} Rdg8 {[%emt 0:07:55]} 14. c3 {[%emt 0:08:12] [#]} ({White should play} 14. N1h2) 14... Kb8 {[%emt 0:14:20]} (14... g5 $1 $17 15. hxg5 hxg5) 15. Bd2 {[%emt 0:07:13]} Qd8 {[%emt 0:13:44]} ({Better is} 15... g5 $17 16. hxg5 hxg5) 16. Rab1 {[%emt 0:09:37]} (16. Ne3 $11 {keeps the balance.}) 16... g5 {[%emt 0:12:01]} 17. hxg5 {[%emt 0:01:09]} Bxg5 {[%emt 0:00:27]} (17... hxg5 $17 18. g4 Nf8) 18. Bxg5 {[%emt 0:02:07]} hxg5 {[%emt 0:00:45]} 19. g4 {[%emt 0:01:19]} Ne7 {[%emt 0:02:57]} 20. Qd2 {[%emt 0:13:38]} Ng6 $19 {[%emt 0:06:57]} 21. d4 {[%emt 0:03:06]} Nf4 {[%emt 0:01:05]} 22. Ng3 {[%emt 0:03:17]} Ba6 {[%emt 0:03:33]} 23. Bf1 {[%emt 0:01:59]} Bxf1 {[%emt 0:01:04]} 24. Kxf1 {[%emt 0:01:11]} Nf8 {[%emt 0:08:12]} 25. dxc5 {[%emt 0:03:56]} bxc5 {[%emt 0:00:37]} 26. Qe3 {[%emt 0:03:39]} Qb6 {[%emt 0:02:32]} 27. Nxg5 {[%emt 0:02:21]} Qb5+ {[%emt 0:06:44]} 28. Kg1 {[%emt 0:00:19]} N8g6 {[%emt 0:00:40]} 29. Ne2 {[%emt 0:03:17]} Nd3 {[%emt 0:04:57]} 30. a4 {[%emt 0:01:12]} Qc4 {[%emt 0:00:40]} 31. Nxf7 {[%emt 0:03:30]} Qxg4+ {[%emt 0:00:40]} 32. Ng3 {[%emt 0:01:23]} Nxe1 {[%emt 0:00:55]} 33. Rxe1 {[%emt 0:00:20]} Rh1+ {[%emt 0:01:07]} 34. Kg2 {[%emt 0:03:04]} Nh4+ {[%emt 0:00:50]} 0-1

[Event "HUN-chT Youth 2019"]
[Site "Budapest"]
[Date "2019.10.29"]
[Round "7.27"]
[White "Monduk, Ferenc"]
[Black "Fodor, Kornel"]
[Result "1/2-1/2"]
[ECO "D32"]
[WhiteElo "1987"]
[BlackElo "1933"]
[Annotator "NA"]
[PlyCount "78"]
[EventDate "2019.10.26"]
[EventType "team-tourn"]
[EventCountry "HUN"]
[SourceTitle "playchess.com"]
[Source "ChessBase"]
[SourceQuality "1"]
[TimeControl "5400+30"]

1. d4 {[%emt 0:00:00]} d5 {[%emt 0:00:00]} 2. c4 {[%emt 0:00:00]} e6 {[%emt 0:00:15]} 3. Nc3 {[%emt 0:00:00]} c5 {[%emt 0:00:20]} 4. e3 {[%emt 0:00:00]} Nf6 {[%emt 0:00:08]} 5. Nf3 {[%emt 0:00:00]} a6 {[%emt 0:00:12]} 6. cxd5 {[%emt 0:01:15]} exd5 {[%emt 0:00:24]} 7. dxc5 {[%emt 0:00:38]} Bxc5 {[%emt 0:00:07]} 8. Bd3 {[%emt 0:00:04]} O-O {[%emt 0:00:27]} 9. O-O {[%emt 0:00:27]} Nc6 {[%emt 0:00:11]} 10. Ne2 {[%emt 0:01:31] D40: Queen's Gambit Declined: Semi-Tarrasch with 5 e3} (10. a3 Bg4 11. b4 Ba7 12. Bb2 d4 13. exd4 Nxd4 14. Ne4 Bxf3 15. gxf3 Nxe4 16. Bxe4 Qd7 17. Qd3 Rad8 18. Rad1 b5 19. Qe3 f5 {0-1 (49) Ruckschloss,K (2230)-Cyborowski,L (2504) Warsaw 2008}) 10... Bg4 {[%emt 0:01:30]} 11. Ng3 {[%emt 0:02:18]} Re8 $146 {[%emt 0:23:27]} ({Predecessor:} 11... Ne5 12. Be2 Nxf3+ 13. Bxf3 Be6 14. a3 Bd6 15. Ne2 Rc8 16. Bd2 Be5 17. Bc3 Qc7 18. Bxe5 Qxe5 {½-½ (62) Mueller,J-Mencke,H Hamburg 1997}) 12. h3 {[%emt 0:02:40]} Bxf3 {[%emt 0:02:03]} 13. Qxf3 {[%emt 0:00:10]} Ne5 {[%emt 0:00:17]} 14. Qe2 {[%emt 0:00:23]} Nxd3 {[%emt 0:05:43]} 15. Qxd3 {[%emt 0:01:05]} d4 {[%emt 0:02:48]} 16. e4 {[%emt 0:08:46]} Nd7 {[%emt 0:02:38]} 17. Nf5 {[%emt 0:06:44]} Ne5 {[%emt 0:05:24] [#]} 18. Qg3 $1 {[%emt 0:01:32]} Qf6 {[%emt 0:02:19]} 19. Bg5 {[%emt 0:16:28]} Qg6 {[%emt 0:02:30]} 20. Rac1 {[%emt 0:02:50]} Bf8 {[%emt 0:01:36]} 21. Rfd1 {[%emt 0:08:43]} Nc6 {[%emt 0:02:08]} 22. Qf4 {[%emt 0:04:52]} (22. f3 $11) 22... f6 {[%emt 0:07:36]} 23. Bh4 {[%emt 0:03:10]} Rad8 {[%emt 0:01:06]} 24. f3 {[%emt 0:01:59]} Qf7 $11 {[%emt 0:05:38]} 25. b3 {[%emt 0:04:57]} g5 {[%emt 0:03:42]} 26. Qg4 {[%emt 0:02:33]} Ne5 {[%emt 0:00:04]} 27. Qg3 {[%emt 0:00:27]} Qg6 {[%emt 0:00:42]} 28. Qf2 {[%emt 0:05:59]} gxh4 {[%emt 0:08:07]} 29. Nxh4 {[%emt 0:00:10]} Qh6 {[%emt 0:01:47]} 30. Qg3+ {[%emt 0:01:00]} Qg5 {[%emt 0:01:13]} 31. Qe1 {[%emt 0:02:53]} Qe3+ {[%emt 0:03:55]} 32. Qxe3 {[%emt 0:01:33]} dxe3 {[%emt 0:00:01]} 33. Kf1 {[%emt 0:00:14]} Rd2 {[%emt 0:01:50]} 34. Rxd2 {[%emt 0:00:38]} exd2 {[%emt 0:00:01]} 35. Rd1 {[%emt 0:00:10]} Bb4 {[%emt 0:00:20]} 36. a3 {[%emt 0:01:13]} Bc3 {[%emt 0:00:19]} 37. g3 {[%emt 0:00:50]} Nd3 {[%emt 0:00:39]} 38. Ke2 {[%emt 0:00:40]} Nb2 {[%emt 0:00:11]} 39. Rxd2 {[%emt 0:00:03]} Bxd2 {[%emt 0:00:25]} 1/2-1/2

[Event "HUN-chT Youth 2019"]
[Site "Budapest"]
[Date "2019.10.29"]
[Round "7.28"]
[White "Lakatos, Tamas"]
[Black "Lengyel, Andrea"]
[Result "0-1"]
[ECO "B22"]
[WhiteElo "1893"]
[BlackElo "1872"]
[Annotator "NA"]
[PlyCount "48"]
[EventDate "2019.10.26"]
[EventType "team-tourn"]
[EventCountry "HUN"]
[SourceTitle "playchess.com"]
[Source "ChessBase"]
[SourceQuality "1"]
[TimeControl "5400+30"]

1. e4 {[%emt 0:00:00]} c5 {[%emt 0:00:00]} 2. c3 {[%emt 0:00:00]} d5 {[%emt 0:00:00]} 3. exd5 {[%emt 0:00:06]} Qxd5 {[%emt 0:00:00]} 4. d4 {[%emt 0:00:03]} Nc6 {[%emt 0:00:52]} 5. Nf3 {[%emt 0:00:38]} Bg4 {[%emt 0:00:09]} 6. Be2 {[%emt 0:00:04]} cxd4 {[%emt 0:00:43]} 7. cxd4 {[%emt 0:00:07]} e6 {[%emt 0:00:22]} 8. O-O {[%emt 0:00:54]} Nf6 {[%emt 0:01:04]} 9. Nc3 {[%emt 0:01:44]} Qd7 {[%emt 0:04:55]} 10. Be3 {[%emt 0:01:38]} Bd6 {[%emt 0:03:08]} 11. h3 {[%emt 0:02:27]} Bh5 {[%emt 0:08:25]} 12. Bg5 {[%emt 0:09:13]} Be7 {[%emt 0:08:35]} 13. Be3 {[%emt 0:07:25]} Bd6 {[%emt 0:02:33]} 14. Kh1 {[%emt 0:01:28]} Bc7 {[%emt 0:01:10]} 15. Bg5 {[%emt 0:13:15]} Nd5 {[%emt 0:00:39]} 16. Ne4 {[%emt 0:02:03]} f6 {[%emt 0:08:47]} 17. Bh4 {[%emt 0:02:01]} Nf4 {[%emt 0:08:26]} 18. Bxf6 $17 {[%emt 0:20:02]} (18. Bb5 $11) 18... Nxe2 {[%emt 0:05:11]} 19. Qxe2 {[%emt 0:00:06]} O-O {[%emt 0:02:32]} 20. g4 {[%emt 0:02:27]} Bg6 {[%emt 0:02:44]} 21. Bh4 {[%emt 0:02:08]} Qd5 {[%emt 0:02:07]} 22. Nfd2 {[%emt 0:03:22]} Nxd4 {[%emt 0:00:33]} 23. Qd3 {[%emt 0:06:53]} Rf3 {[%emt 0:00:58]} 24. Nxf3 {[%emt 0:01:09]} Bxe4 {[%emt 0:00:07]} 0-1

[Event "HUN-chT Youth 2019"]
[Site "Budapest"]
[Date "2019.10.29"]
[Round "7.29"]
[White "Szabo, Balazs"]
[Black "Toth, Lili"]
[Result "1-0"]
[ECO "D30"]
[WhiteElo "2210"]
[BlackElo "2199"]
[Annotator "ChessBase"]
[PlyCount "113"]
[EventDate "2019.10.26"]
[EventType "team-tourn"]
[EventCountry "HUN"]
[SourceTitle "playchess.com"]
[Source "ChessBase"]
[SourceQuality "1"]
[TimeControl "5400+30"]

1. d4 {[%emt 0:00:00]} Nf6 {[%emt 0:00:00]} 2. c4 {[%emt 0:00:00]} e6 {[%emt 0:00:00]} 3. Nf3 {[%emt 0:00:00]} d5 {[%emt 0:00:09]} 4. Bg5 {[%emt 0:00:09]} Bb4+ {[%emt 0:00:10]} 5. Nc3 {[%emt 0:00:41]} O-O {[%emt 0:00:10]} 6. e3 {[%emt 0:00:07]} h6 {[%emt 0:00:30]} 7. Bh4 {[%emt 0:00:05]} Nbd7 {[%emt 0:01:45]} 8. cxd5 {[%emt 0:00:18]} exd5 {[%emt 0:00:05]} 9. Bd3 {[%emt 0:00:07]} c6 {[%emt 0:00:20]} 10. Qc2 {[%emt 0:00:27]} Re8 {[%emt 0:00:58]} 11. O-O {[%emt 0:00:14]} Qc7 {[%emt 0:00:20]} 12. a3 {[%emt 0:01:56]} Bxc3 {[%emt 0:00:17]} 13. Qxc3 {[%emt 0:00:35]} Ne4 {[%emt 0:00:24]} 14. Qc2 {[%emt 0:01:40]} Ndf6 {[%emt 0:00:36]} 15. b4 {[%emt 0:03:08]} Bg4 {[%emt 0:03:09]} 16. Ne5 {[%emt 0:03:49]} Bd7 {[%emt 0:02:01]} 17. Rab1 {[%emt 0:07:41]} Qd6 {[%emt 0:03:24]} 18. Nxd7 {[%emt 0:06:01]} Qxd7 {[%emt 0:00:10]} 19. Rfc1 {[%emt 0:00:48]} Rac8 {[%emt 0:00:45]} 20. Qe2 {[%emt 0:06:03]} a6 {[%emt 0:01:13]} 21. a4 b5 {[%emt 0:00:19]} 22. axb5 {[%emt 0:03:32]} cxb5 {[%emt 0:00:14]} 23. Rxc8 {[%emt 0:02:17]} Rxc8 {[%emt 0:00:08]} 24. Ra1 {[%emt 0:00:42]} Qd6 {[%emt 0:02:15]} 25. h3 {[%emt 0:06:23]} Rc6 {[%emt 0:07:52]} 26. Bxf6 {[%emt 0:06:35]} Nxf6 {[%emt 0:00:19]} 27. Qb2 {[%emt 0:01:49]} Kf8 {[%emt 0:00:36]} 28. Be2 {[%emt 0:03:11]} Qc7 {[%emt 0:00:25]} 29. Bf3 {[%emt 0:00:39]} Ke7 {[%emt 0:01:37]} 30. Re1 {[%emt 0:01:53]} Rc2 {[%emt 0:02:52]} 31. Qb3 {[%emt 0:07:45]} Qc4 {[%emt 0:00:31]} 32. Qb1 {[%emt 0:01:21]} Ne4 {[%emt 0:00:28]} 33. Bxe4 {[%emt 0:01:34]} dxe4 {[%emt 0:00:06]} 34. Rd1 {[%emt 0:01:13]} Qe2 {[%emt 0:00:53]} 35. Rf1 {[%emt 0:00:30]} Kd6 {[%emt 0:04:51]} 36. Qa1 {[%emt 0:04:29]} Ra2 {[%emt 0:00:48]} 37. Qb1 {[%emt 0:00:31]} Kd5 {[%emt 0:02:30]} 38. Qc1 {[%emt 0:01:30]} Rc2 {[%emt 0:01:50]} 39. Qa1 {[%emt 0:00:11]} Ra2 {[%emt 0:00:14]} 40. Qc1 {[%emt 0:00:14]} Qc2 {[%emt 0:01:00]} 41. Qe1 {[%emt 0:01:22]} f5 {[%emt 0:01:24]} 42. h4 {[%emt 0:01:45]} g5 {[%emt 0:00:43]} 43. hxg5 {[%emt 0:01:14]} hxg5 {[%emt 0:00:06]} 44. g3 {[%emt 0:00:56]} Kc6 {[%emt 0:05:44]} 45. Kg2 {[%emt 0:02:47]} Qe2 {[%emt 0:00:36]} 46. Qc1+ {[%emt 0:00:24]} Rc2 {[%emt 0:00:21]} 47. Qa1 {[%emt 0:00:32]} Qf3+ {[%emt 0:00:52]} 48. Kg1 {[%emt 0:00:20]} Kb6 {[%emt 0:00:30]} 49. Qa5+ {[%emt 0:00:27]} Kb7 {[%emt 0:00:22]} 50. Qd8 {[%emt 0:00:46]} Qg4 {[%emt 0:00:33]} 51. Qd5+ {[%emt 0:00:33]} Rc6 {[%emt 0:00:52]} 52. Rc1 {[%emt 0:00:40]} Ka7 {[%emt 0:01:20]} 53. Qxc6 {[%emt 0:00:15]} f4 {[%emt 0:01:03]} 54. Qc7+ {[%emt 0:00:19]} Ka8 {[%emt 0:00:07]} 55. Qd8+ {[%emt 0:00:33]} Ka7 {[%emt 0:00:52]} 56. Rc7+ {[%emt 0:00:07]} Kb6 {[%emt 0:00:05]} 57. Qd6# {[%emt 0:00:05]} 1-0

[Event "HUN-chT Youth 2019"]
[Site "Budapest"]
[Date "2019.10.29"]
[Round "7.31"]
[White "Gombocz, Zsofia"]
[Black "Vodila, Martin Botond"]
[Result "1/2-1/2"]
[ECO "B01"]
[WhiteElo "1917"]
[BlackElo "2114"]
[Annotator "ChessBase"]
[PlyCount "38"]
[EventDate "2019.10.26"]
[EventType "team-tourn"]
[EventCountry "HUN"]
[SourceTitle "playchess.com"]
[Source "ChessBase"]
[SourceQuality "1"]
[TimeControl "5400+30"]

1. e4 {[%emt 0:00:00]} d5 {[%emt 0:00:00]} 2. exd5 {[%emt 0:00:00]} Qxd5 {[%emt 0:00:00]} 3. Nf3 {[%emt 0:00:00]} Nf6 {[%emt 0:00:00]} 4. d4 {[%emt 0:00:00]} Bg4 {[%emt 0:01:16]} 5. Be2 {[%emt 0:00:05]} c6 {[%emt 0:01:20]} 6. O-O {[%emt 0:00:57]} Nbd7 {[%emt 0:00:24]} 7. h3 {[%emt 0:01:05]} Bh5 {[%emt 0:01:34]} 8. c4 {[%emt 0:01:18]} Qa5 {[%emt 0:00:06]} 9. Nc3 {[%emt 0:03:43]} e6 {[%emt 0:00:10]} 10. Bf4 {[%emt 0:00:52]} Be7 {[%emt 0:02:16]} 11. Qb3 {[%emt 0:06:03]} Qb6 {[%emt 0:00:25]} 12. Qxb6 {[%emt 0:00:57]} Nxb6 {[%emt 0:04:13]} 13. g4 {[%emt 0:00:42]} Bg6 {[%emt 0:00:10]} 14. Ne5 {[%emt 0:00:59]} Nfd7 {[%emt 0:00:23]} 15. Nxg6 {[%emt 0:02:15]} hxg6 {[%emt 0:00:06]} 16. Kg2 {[%emt 0:00:25]} O-O {[%emt 0:14:09]} 17. Rfd1 {[%emt 0:12:44]} Rac8 {[%emt 0:01:55]} 18. a3 {[%emt 0:06:14]} g5 {[%emt 0:08:17]} 19. Be3 {[%emt 0:03:35]} Rfd8 {[%emt 0:10:47]} 1/2-1/2